bitfinex/quotes_SOLUSD_20260113
["timestamp","ask_amount","ask_price","bid_price","bid_amount"]
[1768291340156,109.90019826,140.06,140.02,0.7075744]
[1768291340466,111.99188287,140.06,140.02,0.7075744]
[1768291341265,2.09168461,140.05,140.02,0.7075744]
[1768291347087,111.99188287,140.06,140.02,0.7075744]
[1768291348252,2.09168461,140.05,140.02,0.7075744]
[1768291349465,9.2321251,140.05,140.02,0.7075744]
[1768291349774,9.2321251,140.05,140.02,0.6475744]
[1768291350466,9.35237879,140.05,140.02,0.6475744]
[1768291350674,2.21172576,140.03,139.99,7.14323978]
[1768291351259,2.2119383,140.04,139.99,9.23492439]
[1768291351777,125.09189346,140.06,140.02,0.7075744]
[1768291351954,0.099,140.05,140.02,0.7075744]
[1768291352362,2.19068461,140.05,140.02,0.7075744]
[1768291353271,125.09189346,140.06,140.02,0.7075744]
[1768291353472,4.79070977,140.05,140.02,0.7075744]
[1768291353675,125.09189346,140.06,140.02,0.7075744]
[1768291353976,4.79070569,140.05,140.02,0.7075744]
[1768291354186,125.09189346,140.06,140.02,0.7075744]
[1768291354361,4.79101096,140.05,140.02,0.7075744]
[1768291354562,117.9519383,140.06,140.03,0.68818037]
[1768291354762,4.78381299,140.05,140.03,2.09168461]
[1768291354975,9.3509052,140.08,140.03,2.09168461]
[1768291355383,9.3509052,140.08,140.04,0.68818037]
[1768291355584,0.67273343,140.07,140.04,0.68818037]
[1768291357084,13.71273343,140.09,140.05,0.68818037]
[1768291357273,13.71273343,140.09,140.06,0.68818037]
[1768291357769,0.67273343,140.09,140.06,0.68818037]
[1768291360869,123.55008253,140.11,140.07,0.68818037]
[1768291361191,2.86441804,140.12,140.07,0.68818037]
[1768291361399,2.86441804,140.12,140.08,0.68818037]
[1768291361896,0.26979505,140.11,140.08,0.68818037]
[1768291365098,9.49898366,140.11,140.08,0.68818037]
[1768291365300,7.40729905,140.11,140.08,0.68818037]
[1768291365501,2.09168461,140.1,140.08,0.68818037]
[1768291366603,9.49898366,140.11,140.08,0.68818037]
[1768291367497,0.66870405,140.1,140.06,0.68818037]
[1768291367700,0.27769385,140.07,140.03,0.68818037]
[1768291367902,2.36937846,140.07,140.03,0.68818037]
[1768291368204,2.75256885,140.06,140.03,0.68818037]
[1768291370901,0.66088424,140.06,140.03,0.68818037]
[1768291371099,2.36147966,140.07,140.04,0.68818037]
[1768291372007,0.26979505,140.07,140.04,0.68818037]
[1768291372182,2.36147966,140.07,140.04,0.68818037]
[1768291376611,0.26979505,140.07,140.04,0.68818037]
[1768291377009,2.36147966,140.07,140.04,0.68818037]
[1768291378713,0.26979505,140.07,140.04,0.68818037]
[1768291379006,2.36147966,140.07,140.04,0.68818037]
[1768291380214,2.09168461,140.06,140.04,0.68818037]
[1768291380412,2.09168461,140.09,140.05,0.68818037]
[1768291380708,2.76441804,140.1,140.06,0.68818037]
[1768291381208,0.67273343,140.11,140.08,0.68818037]
[1768291381414,9.90168819,140.11,140.08,0.68818037]
[1768291381790,7.81000358,140.11,140.08,0.68818037]
[1768291382004,9.90168819,140.11,140.08,0.68818037]
[1768291383307,11.07416072,140.11,140.08,0.68818037]
[1768291384009,0.67273343,140.11,140.08,0.68818037]
[1768291384307,3.93689057,140.11,140.08,0.68818037]
[1768291384512,0.67273343,140.11,140.08,0.68818037]
[1768291384810,3.93689057,140.11,140.08,0.68818037]
[1768291385007,0.67273343,140.11,140.08,0.68818037]
[1768291385204,3.93689057,140.11,140.08,0.68818037]
[1768291387117,0.67273343,140.11,140.08,0.68818037]
[1768291387310,3.93689057,140.11,140.08,0.68818037]
[1768291389317,0.67273343,140.11,140.08,0.68818037]
[1768291389520,3.93689057,140.11,140.08,0.68818037]
[1768291391020,11.19346637,140.12,140.08,0.68818037]
[1768291391221,4.62243626,140.11,140.08,0.68818037]
[1768291391422,11.19346637,140.12,140.08,0.68818037]
[1768291391619,4.87306259,140.11,140.08,0.68818037]
[1768291391826,0.25033037,140.11,140.08,0.68818037]
[1768291393323,10.65176219,140.11,140.08,0.68818037]
[1768291393518,0.68364141,140.08,140.03,0.71999621]
[1768291393723,3.52315329,140.07,140.04,0.71999621]
[1768291394024,3.9435521,140.06,140.03,0.71999621]
[1768291395529,0.26320014,140.05,140.02,0.70598056]
[1768291396006,3.93939015,140.04,140.0,0.70598056]
[1768291396203,0.26732047,140.03,140.0,0.70598056]
[1768291396409,3.26415714,140.02,139.99,0.70598056]
[1768291397329,3.50147762,140.03,139.99,0.70598056]
[1768291397711,3.26415714,140.02,139.99,0.70598056]
[1768291398924,11.07714885,140.02,139.99,0.70598056]
[1768291399103,3.93101607,140.0,139.95,0.70598056]
[1768291399304,3.26415714,139.99,139.96,0.70598056]
[1768291399641,3.23415715,139.99,139.96,0.70598056]
[1768291400028,3.93101607,140.0,139.96,7.85080749]
[1768291400227,3.26415714,140.0,139.97,0.70598056]
[1768291404314,3.98338997,140.01,139.98,0.70598056]
[1768291404513,0.71923283,140.01,139.98,0.70598056]
[1768291404715,0.71923283,140.03,139.99,0.70598056]
[1768291404927,3.98338997,140.03,139.99,0.70598056]
[1768291407433,3.26415714,140.02,139.99,0.70598056]
[1768291408440,3.97813824,140.01,139.98,0.70598056]
[1768291409021,3.26415714,140.01,139.98,0.70598056]
[1768291411342,11.12528897,140.02,139.98,0.70598056]
[1768291412526,3.26415714,140.01,139.98,0.70598056]
[1768291412931,11.12528897,140.02,139.98,0.70598056]
[1768291414048,3.98338997,140.02,139.98,0.70598056]
[1768291414220,0.71923283,140.02,139.99,0.70598056]
[1768291415138,3.98338997,140.02,139.99,0.70598056]
[1768291415633,0.19406066,140.01,139.97,7.81892152]
[1768291416144,0.19406066,140.01,139.98,0.67470966]
[1768291416526,11.10110291,140.02,139.98,0.67470966]
[1768291417920,3.9592204,140.02,139.98,0.67470966]
[1768291418748,0.69506326,140.02,139.98,0.67470966]
[1768291419947,3.9592204,140.02,139.98,0.67470966]
[1768291420134,0.69506326,140.02,139.99,0.67470966]
[1768291421652,3.9592204,140.02,139.99,0.67470966]
[1768291422046,0.69506326,140.02,139.99,0.67470966]
[1768291425051,0.69506326,140.04,140.0,0.67470966]
[1768291425249,0.69506326,140.04,140.01,0.67470966]
[1768291425833,0.21798853,140.03,140.0,0.67470966]
[1768291426034,3.9592204,140.04,140.0,0.67470966]
[1768291426435,0.69506326,140.04,140.0,0.67470966]
[1768291426725,11.09990303,140.05,140.0,0.67470966]
[1768291426926,7.83574589,140.05,140.01,0.67470966]
[1768291427245,7.83574589,140.05,140.01,3.9388668]
[1768291427856,7.83574589,140.05,140.02,0.67470966]
[1768291428251,0.21798853,140.04,140.01,3.9388668]
[1768291430343,0.69506326,140.06,140.03,3.9388668]
[1768291431230,0.69506326,140.06,140.03,0.67470966]
[1768291434149,103.39506326,140.07,140.04,0.67470966]
[1768291434647,0.69506326,140.07,140.04,3.9388668]
[1768291434842,0.69506326,140.07,140.04,0.67470966]
[1768291435034,7.83400023,140.08,140.05,0.67470966]
[1768291435241,0.69506326,140.08,140.05,0.67470966]
[1768291435641,0.69506326,140.08,140.05,3.9388668]
[1768291436841,7.83385147,140.08,140.05,0.67470966]
[1768291440538,11.09800861,140.08,140.05,0.67470966]
[1768291442361,11.09800861,140.08,140.05,0.61470966]
[1768291443465,9.92367579,140.08,140.05,0.61470966]
[1768291448949,9.92367579,140.08,140.05,0.55470968]
[1768291453365,7.83385147,140.08,140.05,0.55470968]
[1768291453566,9.92367579,140.08,140.05,0.55470968]
[1768291453752,0.33678851,140.07,140.05,0.55470968]
[1768291455572,7.81330649,140.08,140.05,0.55470968]
[1768291458373,0.67134438,140.06,140.02,0.69976493]
[1768291458579,0.3602702,140.05,140.02,0.69976493]
[1768291460892,9.22973958,140.06,140.02,0.69976493]
[1768291461194,9.59308941,140.06,140.02,0.69976493]
[1768291461372,9.22973958,140.06,140.02,0.69976493]
[1768291462983,7.13991526,140.06,140.03,0.69976493]
[1768291463686,9.90382279,140.07,140.03,0.69976493]
[1768291464487,0.35712804,140.06,140.03,0.69976493]
[1768291465384,2.44695236,140.06,140.03,0.69976493]
[1768291469287,0.67134438,140.05,140.02,0.69976493]
[1768291469885,2.7643426,140.06,140.02,0.69976493]
[1768291470186,0.67451828,140.06,140.03,0.69976493]
[1768291470400,0.67451828,140.08,140.05,0.69976493]
[1768291470566,0.67451828,140.08,140.05,0.63976495]
[1768291471466,0.67451828,140.08,140.04,9.23056137]
[1768291471791,0.67451828,140.09,140.06,2.08982432]
[1768291472088,0.67451828,140.09,140.05,2.08982432]
[1768291472464,0.67451828,140.09,140.06,0.69976493]
[1768291472665,0.67451828,140.1,140.06,0.69976493]
[1768291472869,4.77029131,140.09,140.07,0.69976493]
[1768291473072,0.67451828,140.1,140.07,0.63976493]
[1768291473368,4.77029368,140.09,140.07,0.63976493]
[1768291473576,0.67451828,140.1,140.07,0.63976493]
[1768291473890,4.77040581,140.09,140.07,0.63976493]
[1768291474095,0.67451828,140.1,140.07,0.63976493]
[1768291474280,103.37451828,140.11,140.07,9.22909941]
[1768291474472,4.77050741,140.1,140.07,9.22909941]
[1768291474673,103.37451828,140.11,140.07,9.22909941]
[1768291474887,4.7705122,140.1,140.07,9.22909941]
[1768291475094,103.37451828,140.11,140.08,0.6962215]
[1768291475483,4.76990921,140.1,140.08,0.6962215]
[1768291475793,103.37451828,140.11,140.08,0.6962215]
[1768291476273,0.1,140.12,140.09,0.6962215]
[1768291476480,0.1,140.12,140.1,0.6362215]
[1768291476990,0.80959829,140.12,140.09,2.08982432]
[1768291477187,0.1,140.12,140.1,2.08982432]
[1768291477586,0.1,140.12,140.09,9.22787192]
[1768291478491,0.1,140.12,140.1,0.6962215]
[1768291478883,0.1,140.12,140.1,7.83394675]
[1768291479083,0.1,140.13,140.11,0.6962215]
[1768291479982,0.1,140.13,140.11,2.78604582]
[1768291480390,0.1,140.13,140.11,0.6962215]
[1768291485197,0.1,140.13,140.12,0.6962215]
[1768291485601,0.80959829,140.16,140.13,0.6962215]
[1768291485901,2.89942261,140.16,140.13,0.6962215]
[1768291488205,10.03421194,140.16,140.13,0.6962215]
[1768291488397,2.08982432,140.15,140.13,0.6962215]
[1768291489306,7.94438762,140.16,140.13,0.6962215]
[1768291489606,2.08982432,140.15,140.13,0.6962215]
[1768291490001,2.78842313,140.15,140.12,0.6962215]
[1768291490404,0.6987077,140.13,140.1,7.13773057]
[1768291490606,0.6987077,140.13,140.1,7.83397003]
[1768291490903,2.78842313,140.14,140.11,0.6962215]
[1768291491997,2.78853202,140.12,140.09,0.6962215]
[1768291493519,0.7093805,140.11,140.08,7.83461096]
[1768291493801,2.79909916,140.09,140.06,0.6962215]
[1768291494008,2.76909917,140.09,140.06,0.6962215]
[1768291494210,0.67927485,140.09,140.06,0.6962215]
[1768291494384,2.08982432,140.09,140.06,0.6962215]
[1768291495302,17.83835608,140.15,140.07,0.6962215]
[1768291495507,2.08982432,140.12,140.08,2.08982432]
[1768291495695,2.08982432,140.12,140.08,2.78604582]
[1768291495890,2.79942261,140.12,140.08,2.78604582]
[1768291496091,0.66889882,140.11,140.08,0.6962215]
[1768291496512,0.66889882,140.11,140.08,7.83477551]
[1768291498209,7.13572142,140.14,140.11,0.6962215]
[1768291498210,0.70959829,140.14,140.11,0.6962215]
[1768291501188,2.79942261,140.14,140.11,0.6962215]
[1768291502012,0.70959829,140.14,140.11,0.6962215]
[1768291503691,109.93488385,140.16,140.13,0.6962215]
[1768291503692,0.1,140.16,140.13,0.6962215]
[1768291503900,0.76889882,140.16,140.13,0.6962215]
[1768291504500,2.85872314,140.16,140.13,0.6962215]
[1768291505317,0.70661514,140.15,140.12,0.69798884]
[1768291505498,0.67185214,140.14,140.11,0.69798884]
[1768291507911,0.70626751,140.15,140.11,3.95989933]
[1768291508108,0.70626751,140.15,140.12,0.69798884]
[1768291509608,11.20336881,140.16,140.12,0.69798884]
[1768291511120,0.70626751,140.14,140.11,0.69798884]
[1768291514024,3.26191049,140.15,140.11,0.69798884]
[1768291514230,3.96852563,140.15,140.11,0.69798884]
[1768291515610,3.26191049,140.14,140.11,0.69798884]
[1768291515931,3.968178,140.13,140.1,0.72352769]
[1768291516105,3.96783729,140.11,140.06,10.40156549]
[1768291516307,3.93444409,140.1,140.07,0.72352769]
[1768291516727,3.93444409,140.1,140.07,7.86280024]
[1768291517030,3.98073384,140.11,140.07,7.86280024]
[1768291517407,3.98073384,140.11,140.08,0.72352769]
[1768291518008,0.71882335,140.11,140.08,0.72352769]
[1768291518208,0.71882335,140.11,140.08,7.86211657]
[1768291519236,0.71882335,140.11,140.08,0.72352769]
[1768291519430,3.98073384,140.11,140.08,0.72352769]
[1768291520635,0.71823278,140.09,140.06,0.72352769]
[1768291520812,0.68823279,140.09,140.06,0.72352769]
[1768291521018,3.95014328,140.09,140.06,0.72352769]
[1768291523223,0.68823279,140.09,140.06,0.72352769]
[1768291523428,3.98073384,140.1,140.06,0.72352769]
[1768291523833,3.26191049,140.09,140.06,0.72352769]
[1768291524340,3.98073384,140.1,140.07,0.72352769]
[1768291527620,0.71882335,140.11,140.08,0.72352769]
[1768291527952,3.98073384,140.11,140.08,0.72352769]
[1768291528646,0.71882335,140.11,140.08,0.72352769]
[1768291528840,3.98073384,140.11,140.08,0.72352769]
[1768291529340,0.71882335,140.11,140.08,0.72352769]
[1768291529545,3.98073384,140.12,140.09,0.72352769]
[1768291529734,3.89197651,140.11,140.08,0.72352769]
[1768291531653,0.63006602,140.11,140.08,0.72352769]
[1768291533248,3.89197651,140.11,140.08,0.72352769]
[1768291534429,0.63006602,140.11,140.08,0.72352769]
[1768291534639,3.89197651,140.11,140.08,0.72352769]
[1768291535053,0.63006602,140.11,140.08,0.72352769]
[1768291535849,3.9392758,140.1,140.07,0.70023737]
[1768291536034,0.67110948,140.09,140.06,0.70023737]
[1768291537747,0.67736531,140.1,140.07,0.70023737]
[1768291538859,0.67736531,140.11,140.07,0.70023737]
[1768291539041,0.67736531,140.11,140.08,0.70023737]
[1768291542762,11.07618472,140.12,140.08,0.70023737]
[1768291543076,3.9392758,140.12,140.08,0.70023737]
[1768291545387,11.07602588,140.12,140.08,0.70023737]
[1768291545685,7.81411539,140.12,140.08,0.70023737]
[1768291545886,11.07602588,140.12,140.08,0.70023737]
[1768291551187,3.93301997,140.11,140.08,0.70023737]
[1768291551982,0.67730275,140.1,140.06,7.13961749]
[1768291552188,0.67730275,140.1,140.07,0.70023737]
[1768291553287,3.93921324,140.1,140.07,0.70023737]
[1768291553588,11.07700174,140.1,140.07,0.70023737]
[1768291554593,3.93308191,140.09,140.06,0.70023737]
[1768291555390,3.26191049,140.08,140.06,0.70023737]
[1768291555591,3.2319105,140.08,140.06,0.70023737]
[1768291556091,3.90915193,140.08,140.06,0.70023737]
[1768291556293,3.90915193,140.08,140.05,0.70023737]
[1768291557394,3.2319105,140.08,140.05,0.70023737]
[1768291557900,3.20191051,140.08,140.05,0.70023737]
[1768291558799,3.93301997,140.08,140.05,0.70023737]
[1768291559182,3.26191049,140.08,140.05,0.70023737]
[1768291559972,3.93301997,140.08,140.05,0.70023737]
[1768291560173,0.67730275,140.07,140.04,7.84103787]
[1768291560471,0.67736531,140.08,140.05,0.70023737]
[1768291561195,3.26191049,140.09,140.05,0.70023737]
[1768291561387,0.67730275,140.08,140.05,0.70023737]
[1768291562288,3.9392758,140.1,140.06,0.70023737]
[1768291562475,4.68615929,140.09,140.06,0.70023737]
[1768291562677,0.67110948,140.09,140.06,0.70023737]
[1768291563383,0.67110948,140.09,140.06,7.8400155]
[1768291563586,0.67736531,140.11,140.07,3.96214786]
[1768291563790,3.9392758,140.11,140.07,0.70023737]
[1768291563993,3.93301997,140.1,140.07,0.70023737]
[1768291565202,3.26191049,140.1,140.07,0.70023737]
[1768291566205,3.91943892,140.11,140.07,0.70023737]
[1768291566385,3.26191049,140.09,140.06,0.71789882]
[1768291566584,3.26191049,140.09,140.07,0.71789882]
[1768291567306,2.08954579,140.09,140.07,0.71789882]
[1768291567704,0.65752843,140.1,140.07,0.71789882]
[1768291568088,2.08954579,140.09,140.07,0.71789882]
[1768291570605,2.74707422,140.09,140.06,0.71789882]
[1768291570787,0.65752843,140.08,140.05,20.89812963]
[1768291570992,0.62752843,140.08,140.05,20.89812963]
[1768291571607,0.59752841,140.08,140.05,20.89812963]
[1768291571996,2.08954579,140.09,140.06,0.71789882]
[1768291575107,2.08954579,140.08,140.06,0.71789882]
[1768291575406,9.85943248,140.09,140.06,0.71789882]
[1768291575602,2.08954579,140.09,140.06,0.71789882]
[1768291576808,2.65699901,140.09,140.06,0.71789882]
[1768291577207,0.56745322,140.09,140.06,7.8576631]
[1768291578315,0.56745322,140.09,140.06,0.71789882]
[1768291580417,2.65699901,140.09,140.06,0.71789882]
[1768291583814,0.56745322,140.09,140.06,0.71789882]
[1768291584006,2.65699901,140.09,140.06,0.71789882]
[1768291585012,2.65699901,140.09,140.03,0.72479245]
[1768291585013,2.6585297,140.07,140.03,0.72479245]
[1768291585319,2.81161437,140.07,140.03,0.72479245]
[1768291585700,2.08954579,140.07,140.03,0.72479245]
[1768291586117,2.08954579,140.07,140.03,7.86601344]
[1768291586316,2.08954579,140.07,140.04,0.72479245]
[1768291587920,2.81161437,140.08,140.04,0.72479245]
[1768291590519,2.08954579,140.07,140.04,0.72479245]
[1768291593423,2.81161437,140.08,140.04,0.72479245]
[1768291594626,2.08954579,140.08,140.04,0.72479245]
[1768291600824,2.08954579,140.08,140.04,7.86556095]
[1768291601008,2.08954579,140.08,140.05,0.72314788]
[1768291601404,7.79424926,140.09,140.05,0.72314788]
[1768291601612,9.86072655,140.09,140.05,0.72314788]
[1768291601832,2.08954579,140.08,140.05,0.72314788]
[1768291603716,2.72244192,140.09,140.06,0.72314788]
[1768291604037,2.72244192,140.1,140.06,0.72314788]
[1768291604227,4.48324778,140.09,140.06,0.72314788]
[1768291604433,2.72244192,140.1,140.06,0.72314788]
[1768291604616,4.48330753,140.09,140.06,0.72314788]
[1768291604816,2.72244192,140.1,140.06,0.72314788]
[1768291605034,4.48330753,140.09,140.06,0.72314788]
[1768291605210,2.72244192,140.1,140.06,0.72314788]
[1768291605410,4.48327089,140.09,140.06,0.72314788]
[1768291605632,2.08954579,140.09,140.06,0.72314788]
[1768291606004,2.74527974,140.09,140.06,0.72314788]
[1768291609537,0.65573395,140.09,140.06,0.72314788]
[1768291609733,7.79338917,140.11,140.07,0.72314788]
[1768291610037,4.42399336,140.1,140.07,0.72314788]
[1768291610230,9.85986646,140.11,140.07,0.72314788]
[1768291610414,4.42432876,140.1,140.07,0.72314788]
[1768291610614,9.85986646,140.11,140.07,0.72314788]
[1768291610822,6.51473276,140.1,140.07,0.72314788]
[1768291611021,2.08954579,140.1,140.07,0.72314788]
[1768291611333,4.42548038,140.09,140.07,0.72314788]
[1768291611539,2.74551042,140.12,140.07,2.08954579]
[1768291611737,2.74551042,140.12,140.07,9.22868681]
[1768291611909,2.74551042,140.12,140.08,0.72314788]
[1768291613239,0.65596463,140.12,140.08,0.72314788]
[1768291613431,2.74551042,140.12,140.08,0.72314788]
[1768291613737,0.65596463,140.11,140.08,0.72314788]
[1768291616426,2.74551042,140.11,140.08,0.72314788]
[1768291617546,0.65596463,140.11,140.08,0.72314788]
[1768291618348,0.65596463,140.14,140.1,0.72314788]
[1768291618545,2.74551042,140.14,140.11,0.72314788]
[1768291618932,0.65596463,140.13,140.09,2.08954579]
[1768291619135,2.74551042,140.14,140.1,0.72314788]
[1768291619529,9.88128686,140.14,140.1,0.72314788]
[1768291621450,9.88128686,140.14,140.09,7.13825272]
[1768291621451,0.65596463,140.12,140.09,0.72314788]
[1768291623847,0.65596463,140.12,140.09,9.95095778]
[1768291624849,0.65596463,140.12,140.09,2.81269367]
[1768291625733,2.08954579,140.13,140.1,0.69260955]
[1768291626747,9.22532223,140.14,140.1,0.69260955]
[1768291627044,4.38868084,140.13,140.11,2.78215534]
[1768291627217,102.7,140.15,140.12,0.69260955]
[1768291627422,4.38861425,140.14,140.12,0.69260955]
[1768291627636,4.38861425,140.13,140.12,0.69260955]
[1768291628837,0.67077963,140.15,140.12,0.69260955]
[1768291629544,0.77077963,140.16,140.12,0.69260955]
[1768291629733,4.31873328,140.15,140.13,0.69260955]
[1768291629918,4.03253839,140.16,140.13,0.69260955]
[1768291630125,4.31832671,140.15,140.13,0.69260955]
[1768291630331,4.03253839,140.16,140.13,0.69260955]
[1768291630519,4.31743743,140.15,140.13,0.69260955]
[1768291630726,0.77077963,140.16,140.13,0.69260955]
[1768291631025,4.31725177,140.15,140.13,0.69260955]
[1768291631337,4.03253839,140.16,140.13,0.69260955]
[1768291631544,4.98728254,140.15,140.12,0.69260955]
[1768291631749,0.67077963,140.15,140.12,0.69260955]
[1768291631935,11.16733599,140.16,140.12,0.69260955]
[1768291632246,0.67077963,140.15,140.12,0.69260955]
[1768291633133,3.93253839,140.15,140.12,0.69260955]
[1768291634060,0.67077963,140.15,140.12,0.69260955]
[1768291636736,3.93553128,140.13,140.1,0.67448096]
[1768291637955,0.67377252,140.13,140.1,0.67448096]
[1768291639659,3.93553128,140.13,140.1,0.67448096]
[1768291639864,0.67377252,140.12,140.09,0.67448096]
[1768291640060,0.64377253,140.1,140.07,0.67448096]
[1768291640657,3.26175876,140.11,140.07,0.67448096]
[1768291640870,6.52351752,140.08,139.99,3.71956961]
[1768291641072,3.26175876,140.04,139.99,3.71956961]
[1768291641377,3.26175876,140.02,139.99,0.67448096]
[1768291642250,3.26175876,140.01,139.98,0.67448096]
[1768291642457,3.93553128,140.01,139.98,0.67448096]
[1768291643176,3.26175876,140.01,139.98,0.67448096]
[1768291646157,0.67377252,140.02,139.98,0.67448096]
[1768291646358,3.93553128,140.02,139.98,7.81828881]
[1768291648177,3.26175876,140.01,139.98,7.81828881]
[1768291648593,3.93553128,140.02,139.98,7.81828881]
[1768291648956,0.67377252,140.02,139.98,7.81828881]
[1768291649157,3.93553128,140.03,140.0,0.67448096]
[1768291650872,7.81409393,140.05,140.01,0.67448096]
[1768291651066,3.93553128,140.04,140.01,0.67448096]
[1768291651772,0.67377252,140.04,140.01,0.67448096]
[1768291652070,3.93553128,140.04,140.01,0.67448096]
[1768291653270,0.67377252,140.05,140.01,0.67448096]
[1768291653474,3.93553128,140.06,140.02,0.67448096]
[1768291653673,0.67377252,140.06,140.02,0.67448096]
[1768291653860,0.67377252,140.07,140.04,0.67448096]
[1768291654174,3.93553128,140.07,140.04,0.67448096]
[1768291654567,3.93553128,140.07,140.03,0.67448096]
[1768291656180,3.93553128,140.07,140.04,7.1408169]
[1768291656181,0.67377252,140.07,140.04,7.1408169]
[1768291656374,3.93553128,140.07,140.04,7.1408169]
[1768291657783,102.7,140.13,140.07,0.71395804]
[1768291657975,3.26175876,140.12,140.08,0.71395804]
[1768291658666,109.8357955,140.14,140.08,0.71395804]
[1768291658866,3.26175876,140.13,140.08,3.9757168]
[1768291659084,10.39802578,140.13,140.08,11.11448524]
[1768291659275,7.13626702,140.13,140.08,7.85272648]
[1768291659482,3.26175876,140.12,140.08,11.11448524]
[1768291659679,0.65900982,140.13,140.09,0.71395804]
[1768291659874,0.62119662,140.12,140.09,3.9757168]
[1768291662687,1e-08,140.16,140.13,0.71395804]
[1768291662874,0.72119662,140.19,140.15,3.26175876]
[1768291663072,0.72119662,140.19,140.13,0.71395804]
[1768291663391,11.11654435,140.19,140.14,3.26175876]
[1768291663877,3.36175876,140.18,140.13,3.9757168]
[1768291664479,3.36175876,140.18,140.13,11.11164205]
[1768291664990,0.75900982,140.17,140.13,11.11164205]
[1768291665197,0.75900982,140.17,140.13,7.84988329]
[1768291666100,4.02076858,140.17,140.13,7.84988329]
[1768291666291,0.75900982,140.17,140.13,11.11164205]
[1768291666669,0.75900982,140.17,140.13,7.84988329]
[1768291668481,4.02076858,140.17,140.13,7.84988329]
[1768291670492,0.75900982,140.17,140.14,7.8496305]
[1768291670692,0.1,140.17,140.14,7.8496305]
[1768291670895,0.1,140.17,140.14,11.11138926]
[1768291671276,0.75900982,140.18,140.15,0.71395804]
[1768291671678,0.1,140.18,140.16,0.71395804]
[1768291672079,0.1,140.18,140.15,13.75395804]
[1768291672295,0.1,140.18,140.15,17.0157168]
[1768291672495,0.1,140.18,140.16,0.71395804]
[1768291672696,0.1,140.18,140.16,7.84823245]
[1768291673200,0.72119662,140.18,140.15,24.15084745]
[1768291673899,0.72119662,140.18,140.15,20.88908869]
[1768291675198,0.72119662,140.18,140.15,24.15084745]
[1768291675899,0.72119662,140.18,140.15,11.11084745]
[1768291676275,0.1,140.18,140.15,7.84908869]
[1768291676872,0.1,140.18,140.14,16.28175876]
[1768291676873,0.65826108,140.15,140.12,7.13669197]
[1768291677097,0.04323561,140.15,140.11,10.39889502]
[1768291677294,0.04323561,140.15,140.11,11.11285306]
[1768291677980,3.26175876,140.16,140.12,0.71395804]
[1768291679899,3.26175876,140.16,140.13,0.71395804]
[1768291681304,7.13427135,140.17,140.13,0.71395804]
[1768291681504,3.26175876,140.15,140.13,0.71395804]
[1768291681988,3.36175876,140.18,140.13,0.71395804]
[1768291683002,3.36175876,140.18,140.13,3.9757168]
[1768291683499,3.36175876,140.18,140.13,11.11189593]
[1768291683706,0.1,140.18,140.15,0.71395804]
[1768291683888,0.1,140.18,140.16,0.71395804]
[1768291684498,0.1,140.18,140.16,3.9757168]
[1768291684713,0.1,140.2,140.19,0.65966477]
[1768291684714,1e-08,140.2,140.19,0.65966477]
[1768291684883,1e-08,140.2,140.19,1e-08]
[1768291696004,0.1,140.23,140.21,0.70529904]
[1768291696888,0.55963089,140.23,140.2,0.70529904]
[1768291702610,0.55963089,140.23,140.2,7.83794378]
[1768291703018,0.55963089,140.23,140.2,0.70529904]
[1768291705921,0.55963089,140.23,140.2,7.83795677]
[1768291708222,0.55963089,140.23,140.2,9.92342786]
[1768291709619,0.1,140.23,140.2,9.92342786]
[1768291710197,0.1,140.23,140.21,0.70529904]
[1768291712822,0.1,140.23,140.21,7.83745232]
[1768291723821,0.1,140.23,140.22,0.67176116]
[1768291725333,0.1,140.23,140.22,7.80341142]
[1768291725631,0.1,140.24,140.23,0.67176116]
[1768291727031,0.1,140.24,140.22,7.80341142]
[1768291728232,0.1,140.24,140.23,0.67176116]
[1768291729527,4.77063698,140.24,140.23,0.67176116]
[1768291734129,4.77063698,140.24,140.23,0.61176116]
[1768291736442,4.77063698,140.24,140.23,7.74290285]
[1768291736646,1e-08,140.24,140.23,7.13114169]
[1768291736938,0.1,140.28,140.23,11.30208387]
[1768291737116,0.1,140.28,140.26,2.75723225]
[1768291737313,0.1,140.28,140.26,0.67176116]
[1768291740539,0.80336199,140.28,140.25,22.90734137]
[1768291741050,0.1,140.28,140.26,0.67176116]
[1768291742545,0.80336199,140.28,140.25,22.23558021]
[1768291743651,0.70336199,140.26,140.23,7.1307803]
[1768291743847,0.70336199,140.26,140.24,13.02]
[1768291744631,0.70336199,140.26,140.24,11.57]
[1768291745230,0.70336199,140.26,140.24,18.7006208]
[1768291745426,0.1,140.28,140.26,0.66384223]
[1768291746248,0.1,140.28,140.26,2.74931332]
[1768291746424,0.1,140.28,140.27,0.66384223]
[1768291746629,0.1,140.3,140.28,0.66384223]
[1768291746844,0.1,140.3,140.29,0.66384223]
[1768291747048,0.1,140.32,140.29,2.08547109]
[1768291747250,0.1,140.32,140.3,13.02]
[1768291747430,0.1,140.33,140.31,2.08547109]
[1768291747839,0.1,140.33,140.31,2.02547109]
[1768291748235,0.1,140.33,140.3,13.02]
[1768291748236,0.25077974,140.33,140.3,13.02]
[1768291748550,0.1,140.33,140.3,13.02]